Cogmind - Beta 17.1 *** ADVENTURER MODE // 2026.09.06 @ 17:21:44 Player: Happytimes Result: Self-destructed Performance ------------- Evolutions (2) 1000 Regions Visited (5) 1000 Robots Destroyed (11) 55 Value Destroyed (498) 498 Prototype IDs (0) 0 Alien Tech Used (0) 0 Bonus (700) 700 TOTAL SCORE: 3253 Bonus ------- Entered Garrisons 200 Used RIF Installer 500 Cogmind --------- Core Integrity 486/550 Matter 227/300 Energy 100/100 System Corruption 0% Temperature Cool (19) Movement Flying (34) Location -8/Garrison Parts ------- > --- POWER (1) -------- (None) > --- PROPULSION (4) --- Flight Unit Flight Unit Flight Unit > --- UTILITY (4) ------ Relay Coupler [Sentry] (21) Relay Coupler [Hunter] (16) > --- WEAPON (2) ------- Light Assault Rifle High-powered Shotgun > --- INVENTORY (5) ---- Improved Heat Sink Power Shielding Scrap Shield Peak State ------------ > --- POWER ------------ Micro Nuclear Core > --- PROPULSION ------- Gravmag System Flight Unit Flight Unit Flight Unit > --- UTILITY ---------- Relay Coupler [NC] Relay Coupler [Sentry] Relay Coupler [Hunter] > --- WEAPON ----------- Light Assault Rifle High-powered Shotgun > --- INVENTORY -------- Improved Heat Sink Power Shielding Scrap Shield [Rating: 25] Favorites ----------- Power Ion Engine Engine Ion Engine Power Core Micro Nuclear Core Propulsion Flight Unit Wheel Wheel Hover Unit Gravmag System Flight Unit Flight Unit Utility Relay Coupler [Sentry] Hackware Relay Coupler [Sentry] Weapon Assault Rifle Energy Gun Medium Laser Ballistic Gun Assault Rifle Build | -11 -10 -10 -10 -8 -8 ------- Run | Yrd Mat Min Sub Mat Gar Slots Evolved 4 | . . . . 4 . Power . | . . . . . . Propulsion 2 | . . . . 2 . Utility 2 | . . . . 2 . Weapon . | . . . . . . Parts Attached 18 | 5 1 2 . 2 8 Power 2 | 1 . . . . 1 Engine 1 | 1 . . . . . Core 1 | . . . . . 1 Reactor . | . . . . . . Propulsion 9 | 2 . 2 . 1 4 Treads . | . . . . . . Leg . | . . . . . . Wheel 2 | 2 . . . . . Hover 2 | . . . . 1 1 Flight 5 | . . 2 . . 3 Utility 3 | . . . . . 3 Device . | . . . . . . Storage . | . . . . . . Processor . | . . . . . . Hackware 3 | . . . . . 3 Protection . | . . . . . . Artifact . | . . . . . . Weapon 4 | 2 1 . . 1 . Energy Gun 1 | 1 . . . . . Energy Cannon . | . . . . . . Ballistic Gun 3 | 1 1 . . 1 . Ballistic Cannon . | . . . . . . Launcher . | . . . . . . Special Weapon . | . . . . . . Impact Weapon . | . . . . . . Slashing Weapon . | . . . . . . Piercing Weapon . | . . . . . . Special Melee Weapon . | . . . . . . Unidentified Prototypes . | . . . . . . Parts Lost 5 | . . . . . 5 Power 1 | . . . . . 1 Propulsion 2 | . . . . . 2 Utility 1 | . . . . . 1 Weapon 1 | . . . . . 1 Highest Loss Streak 3 | . . . . . 3 To Critical Strikes . | . . . . . . Average Backups 3 | . 1 2 3 3 3 Power . | . . . . . . Propulsion . | . . 1 1 . . Utility 2 | . . 1 2 3 3 Weapon . | . . . . . . Tool/Special . | . . . . . . Unused Backups 3 | . . . . . 3 Power . | . . . . . . Propulsion . | . . . . . . Utility 3 | . . . . . 3 Weapon . | . . . . . . Tool/Special . | . . . . . . Average Slot Usage (%) 61 | . 71 71 71 45 51 Engine 8 | . 14 14 14 9 2 Core 2 | . . . . . 6 Wheel 8 | . 28 25 . . . Hover 3 | . . . . 2 7 Flight 13 | . . 2 28 18 14 Hackware 2 | . . . . . 6 Ballistic Gun 21 | . 21 28 28 15 15 Peak Build Rating 25 | 5 5 5 5 7 25 Average Rating 8 | 3 5 4 5 5 14 On Entrance 4 | . 5 5 5 5 6 Avg Prop Armor Cover (%) 6 | . . . . . 6 Naked Turns . | . . . . . . Heaviest Build 11 | 9 9 8 8 8 11 Greatest Support 20 | 20 20 20 8 8 12 Greatest Overweight (x) 2 | . . . . . 2 Average Overweight (x) . | . . . . . . Largest Inventory Capacity 5 | 5 5 5 5 5 5 Average Capacity 5 | 5 5 5 5 5 5 Most Carried 5 | 4 2 5 5 5 5 Average Carried 3 | . 1 2 4 4 4 Final Capacity 5 | 5 5 5 5 5 5 Final Carried 5 | . 2 3 5 5 4 Class Distribution -------------------- 88% | Mutant 11% | Scavenger-Mutant Dominant Class ---------------- Mutant | -10/Materials Mutant | -10/Mines Mutant | -10/Subcaves Mutant | -8/Materials Mutant | -8/Garrison Resources | -11 -10 -10 -10 -8 -8 ----------- Run | Yrd Mat Min Sub Mat Gar Matter Collected 455 | 250 . 18 28 . 159 Remotely . | . . . . . . Salvage Created 253 | . . 33 . . 220 Parts 22 | . . 5 . . 17 Haulers Intercepted . | . . . . . . Recyclers Shooed . | . . . . . . Parts Field Recycled . | . . . . . . Retrieved Matter . | . . . . . . Parts Self-Destructed 4 | . . . 4 . . Prevented . | . . . . . . Parts Restored . | . . . . . . Kills | -11 -10 -10 -10 -8 -8 ------- Run | Yrd Mat Min Sub Mat Gar Combat Hostiles Destroyed 11 | . . 2 . . 9 Guns 11 | . . 2 . . 9 Classes Destroyed 4 | . . 1 . . 3 Swarmer 5 | . . 2 . . 3 Cutter 2 | . . . . . 2 Grunt 2 | . . . . . 2 Programmer 2 | . . . . . 2 Best Kill Streak 5 | . . 2 . . 5 Combat Bots Only 5 | . . 2 . . 5 Max Kills in Single Turn 2 | . . 2 . . 2 Gunslinging 1 | . . 1 . . . Exploded . | . . . . . . Melee . | . . . . . . Uniques/NPCs Destroyed . | . . . . . . Combat | -11 -10 -10 -10 -8 -8 -------- Run | Yrd Mat Min Sub Mat Gar Hostile Shots Fired 52 | . . 5 5 . 42 Missed 14 | . . 4 1 . 9 Hits 38 | . . 1 4 . 33 Melee 5 | . . . . . 5 Projectile 33 | . . 1 4 . 28 AOE 1 | . . . . . 1 Critical Strikes 2 | . . . . . 2 Damage Taken 501 | . . 8 99 . 394 Core 138 | . . . 74 . 64 Absorbed by Shields . | . . . . . . Ignored by Resistances 141 | . . 2 27 . 112 Core Remaining (%) 85 | 100 . . 70 . . Volleys Fired 28 | . . 2 2 . 24 Largest 2 | . . 2 2 . 2 Hottest 45 | . . 40 40 . 45 Shots Fired 45 | . . 4 4 . 37 Gun 45 | . . 4 4 . 37 Cannon . | . . . . . . Launcher . | . . . . . . Special . | . . . . . . Kinetic 45 | . . 4 4 . 37 Thermal . | . . . . . . Explosive . | . . . . . . Electromagnetic . | . . . . . . Robot Hit Streak 18 | . . 2 6 . 18 Robot Miss Streak 4 | . . 1 . . 4 Penetration Max . | . . . . . . Secondary Targets 2 | . . 1 . . 1 Max Gunslinging Chain 1 | . . 1 . . 1 Shots Hit Robots 32 | . . 3 4 . 25 Core Hits 22 | . . 2 1 . 19 Critical Kills . | . . . . . . Critical Parts Destroyed . | . . . . . . Critical Strikes . | . . . . . . Melee Attacks . | . . . . . . Impact . | . . . . . . Slashing . | . . . . . . Piercing . | . . . . . . Sneak Attacks . | . . . . . . Combat Hostiles . | . . . . . . Follow-up Attacks . | . . . . . . Damage Inflicted 558 | . . 36 44 . 478 Guns 558 | . . 36 44 . 478 Cannons . | . . . . . . Explosions . | . . . . . . Melee . | . . . . . . Ramming . | . . . . . . Kinetic 558 | . . 36 44 . 478 Thermal . | . . . . . . Explosive . | . . . . . . Electromagnetic . | . . . . . . Impact . | . . . . . . Slashing . | . . . . . . Piercing . | . . . . . . Highest Corruption . | . . . . . . Average Corruption . | . . . . . . Corruption Purged . | . . . . . . Corruption Blocked . | . . . . . . Overload Shots . | . . . . . . Overflow Damage . | . . . . . . Projectiles . | . . . . . . Explosions . | . . . . . . Melee . | . . . . . . Knockbacks . | . . . . . . Impact . | . . . . . . Kinetic . | . . . . . . Secondary . | . . . . . . Self-Inflicted Damage . | . . . . . . Shots . | . . . . . . Rammed . | . . . . . . Targets Rammed . | . . . . . . Kicked . | . . . . . . Crushed . | . . . . . . Highest Temperature 19 | . . . . . 19 Average Temperature 4 | . . . . . 4 Received Heat Transfer 117 | . . . 18 . 99 Siege Activations . | . . . . . . Martial Activations . | . . . . . . Shielding Activations . | . . . . . . Robots Disrupted . | . . . . . . Combat Hostiles . | . . . . . . Robots Corrupted . | . . . . . . Combat Hostiles . | . . . . . . Parts Fried . | . . . . . . Impact Corruptions . | . . . . . . Robots Melted . | . . . . . . Combat Hostiles . | . . . . . . Parts Melted . | . . . . . . Heat Transferred . | . . . . . . Parts Sabotaged . | . . . . . . Parts Stolen . | . . . . . . Parts Stripped . | . . . . . . Power Chain Reactions . | . . . . . . Alert | -11 -10 -10 -10 -8 -8 ------- Run | Yrd Mat Min Sub Mat Gar Maximum Alert Level 1 | . . . . . 1 Low Security (%) 95 | 100 100 100 . 100 90 Level 1 4 | . . . . . 9 Level 2 . | . . . . . . Level 3 . | . . . . . . Level 4 . | . . . . . . Level 5 . | . . . . . . High Security . | . . . . . . Max Security . | . . . . . . Peak Influence 247 | . . 50 . . 247 Initial . | . . . . . . Average 47 | . . 8 . . 86 Influence Increases 317 | . . 50 . . 267 Destroy 0b10 Robot/C 220 | . . 40 . . 180 Destroy Leader 20 | . . 10 . . 10 Successful Hack 12 | . . . . . 12 Anti-Garrison Action 50 | . . . . . 50 Partial Spotted 15 | . . . . . 15 Influence Decreases 90 | . . 20 30 . 40 Entered New Map 18 | . . . 18 . . Time Decay 32 | . . 20 12 . . Lost Part 40 | . . . . . 40 Squads Dispatched . | . . . . . . Investigation . | . . . . . . Extermination . | . . . . . . Reinforcement . | . . . . . . Assault . | . . . . . . Garrison . | . . . . . . Intercept . | . . . . . . Searches Triggered . | . . . . . . Construction Impeded . | . . . . . . Haulers Reinforced . | . . . . . . Active Scanning Responses . | . . . . . . Cargo Convoy Interrupts . | . . . . . . Stealth | -11 -10 -10 -10 -8 -8 --------- Run | Yrd Mat Min Sub Mat Gar Distress Signals 1 | . . . . 1 . Communications Jammed . | . . . . . . Distress Signals . | . . . . . . Times Spotted 21 | . . 2 5 2 12 Peak Tracking Total 8 | . . 3 5 8 5 Tactical Retreats . | . . . . . . Traps | -11 -10 -10 -10 -8 -8 ------- Run | Yrd Mat Min Sub Mat Gar Traps Triggered 2 | . . . 1 . 1 Indirectly . | . . . . . . Trap Hack Attempts . | . . . . . . Triggered . | . . . . . . Disarmed . | . . . . . . Reprogrammed . | . . . . . . Reused . | . . . . . . Traps Extracted . | . . . . . . Installed . | . . . . . . Triggered . | . . . . . . Machines | -11 -10 -10 -10 -8 -8 ---------- Run | Yrd Mat Min Sub Mat Gar Machines Disabled 1 | . . . . . 1 Max in Single Turn 1 | . . . . . 1 Garrison Relay 1 | . . . . . 1 Machines Repaired . | . . . . . . Machines Dismantled . | . . . . . . Machines Sabotaged . | . . . . . . Overloaded Fab Kills . | . . . . . . Hacking | -11 -10 -10 -10 -8 -8 --------- Run | Yrd Mat Min Sub Mat Gar Machines Accessed 3 | . . . . 2 1 Terminals 2 | . . . . 1 1 Fabricators . | . . . . . . Repair Stations . | . . . . . . Recycling Units . | . . . . . . Scanalyzers . | . . . . . . Garrison Access 1 | . . . . 1 . Total Hacks 4 | . . . . 3 1 Successful 4 | . . . . 3 1 Failed . | . . . . . . Catastrophic . | . . . . . . Database Lockouts . | . . . . . . Manual . | . . . . . . Terminals 3 | . . . . 2 1 Fabricators . | . . . . . . Repair Stations . | . . . . . . Recycling Units . | . . . . . . Scanalyzers . | . . . . . . Garrison Access 1 | . . . . 1 . Terminal Hacks 3 | . . . . 2 1 Locate Traps 1 | . . . . 1 . Zone Layout 1 | . . . . 1 . Garrison Registry 1 | . . . . . 1 Fabricator Hacks . | . . . . . . Repair Station Hacks . | . . . . . . Recycling Unit Hacks . | . . . . . . Scanalyzer . | . . . . . . Garrison Access Hacks 1 | . . . . 1 . Unlock Access 1 | . . . . 1 . Unauthorized Hacks . | . . . . . . Terminals . | . . . . . . Fabricators . | . . . . . . Repair Stations . | . . . . . . Recycling Units . | . . . . . . Scanalyzers . | . . . . . . Garrison Access . | . . . . . . Data Cores Recovered . | . . . . . . Used . | . . . . . . Hacking Detections 3 | . . . . 2 1 Full Trace Events . | . . . . . . Feedback Events . | . . . . . . Feedback Blocked . | . . . . . . Robot Schematics Acquired . | . . . . . . Robots Built . | . . . . . . Authchips . | . . . . . . Time . | . . . . . . Total Robot Build Rating . | . . . . . . Part Schematics Acquired . | . . . . . . Parts Built . | . . . . . . Authchips . | . . . . . . Time . | . . . . . . Total Part Build Rating . | . . . . . . Part Studies Acquired . | . . . . . . Parts Repaired . | . . . . . . Time . | . . . . . . Parts Recycled . | . . . . . . Recycled Matter . | . . . . . . Retrieved Matter . | . . . . . . Retrieved Components . | . . . . . . Parts Scanalyzed . | . . . . . . Part Schematics Acquired . | . . . . . . Parts Damaged . | . . . . . . Bothacking | -11 -10 -10 -10 -8 -8 ------------ Run | Yrd Mat Min Sub Mat Gar Used RIF Installer 1 | . . . . . 1 Robots Hacked . | . . . . . . Non-combat . | . . . . . . Combat . | . . . . . . Robot Hacks Applied . | . . . . . . Relay Couplers Released 5 | . . . . . 5 Machine Destruction 5 | . . . . . 5 Attached 3 | . . . . . 3 Fabnet Peak Effective % . | . . . . . . Robots Rewired . | . . . . . . Allies Hacked . | . . . . . . Hacks Repelled . | . . . . . . Allies | -11 -10 -10 -10 -8 -8 -------- Run | Yrd Mat Min Sub Mat Gar Total Allies . | . . . . . . Largest Group . | . . . . . . Highest-Rated Group . | . . . . . . Highest-Rated Ally . | . . . . . . Total Orders . | . . . . . . Ally Attacks . | . . . . . . Total Damage . | . . . . . . Kills . | . . . . . . Allies Corrupted . | . . . . . . Allies Melted . | . . . . . . Intel | -11 -10 -10 -10 -8 -8 ------- Run | Yrd Mat Min Sub Mat Gar Active Infowar (turns) . | . . . . . . Robot Analysis Total . | . . . . . . Derelict Logs Recovered 2 | . . 2 . . . Drone Launches . | . . . . . . Drone Recoveries . | . . . . . . Exploration | -11 -10 -10 -10 -8 -8 ------------- Run | Yrd Mat Min Sub Mat Gar Turns Passed 626 | 33 51 124 121 33 264 Spaces Moved 706 | 32 56 150 199 69 200 Core 9 | 9 . . . . . Treads . | . . . . . . Legs . | . . . . . . Wheels 204 | 23 56 125 . . . Hover 76 | . . . . . 76 Flight 417 | . . 25 199 69 124 Fastest Speed 34 | 50 80 37 37 37 34 Average Speed 59 | 71 80 72 37 37 72 Slowest Speed 200 | 80 80 80 37 37 200 Overloaded Moves . | . . . . . . Propulsion Burnouts . | . . . . . . Robots Hopped . | . . . . . . Potential Cave-ins . | . . . . . . Cave-ins Triggered . | . . . . . . Exploration Rate (%) 23 | 4 22 59 14 15 24 Regions Visited 5 Branch Regions 2 Pre-discovered Areas 1 | . . 1 . . . Known Exits Taken 1 | . . . . 1 . Unknown Exits Taken 4 | 1 1 1 1 . . Scrap Searched . | . . . . . . Spaces Dug . | . . . . . . Terrain Destroyed . | . . . . . . Melee . | . . . . . . Projectile . | . . . . . . AOE . | . . . . . . Terrain Rammed . | . . . . . . Walls Destroyed . | . . . . . . Machines Disabled . | . . . . . . Actions | -11 -10 -10 -10 -8 -8 --------- Run | Yrd Mat Min Sub Mat Gar Total 862 | 41 62 161 242 78 278 Wait 75 | . 2 3 41 . 29 Move 702 | 31 55 149 198 69 200 Hop . | . . . . . . Pick Up 14 | 5 3 3 1 2 . Fast Attach 7 | . . . . . 7 Attach 11 | 5 1 2 . 2 1 Detach 1 | . . . . 1 . Swap 3 | . . . . 1 2 Drop 8 | . 1 2 . 3 2 Fire 28 | . . 2 2 . 24 Melee . | . . . . . . Ram . | . . . . . . Kick . | . . . . . . Crush . | . . . . . . Escape Stasis 13 | . . . . . 13 Rewire . | . . . . . . Trap . | . . . . . . Miscellaneous . | . . . . . . Route ------- -11/Scrapyard -10/Materials -10/Mines -10/Subcaves -8/Materials -8/Garrison (discovered 3 exits: [Mat x3]) History --------- Turn | Location | Event 16 | -11/Scrapyard | Discovered new exit (range 16) 34 | -11/Scrapyard | Entered Materials 75 | -10/Materials | Discovered new exit (range 12) 85 | -10/Materials | Entered Mines 95 | -10/Mines | Met a Derelict bent on vengeance 102 | -10/Mines | Learned location of Zion (-7) 201 | -10/Mines | Discovered new exit (range 9) 204 | -10/Mines | Learned Materials garrison access intel 209 | -10/Mines | Entered Subcaves 210 | -10/Subcaves | Approached by a straggling Scientist 231 | -10/Subcaves | A swath of the cavern ceiling suddenly collapsed 302 | -10/Subcaves | Ambushed by swarm of Subdwellers 315 | -10/Subcaves | Build established: Mutant 322 | -10/Subcaves | Ambushed by Subdwellers from Twisted Machinery 328 | -10/Subcaves | Discovered new exit (range 7) 330 | -10/Subcaves | Entered Materials 330 | -8/Materials | Evolved 4 slots: Propulsion x2, Utility x2 331 | -8/Materials | Loaded intel: 1 garrison access location 363 | -8/Materials | Identified exit to Garrison 363 | -8/Materials | Entered Garrison 436 | -8/Garrison | Installed Relay Interface Framework 523 | -8/Garrison | Triggered checkpoint 562 | -8/Garrison | Garrison Relay disabled 602 | -8/Garrison | Discovered new exit (range 30) 602 | -8/Garrison | Discovered new exit (range 64) 602 | -8/Garrison | Discovered new exit (range 61) 627 | -8/Garrison | Self-destructed Last Messages --------------- relay unit. 00565_ Acquired Relay Coupler [Sentry]. 00566_ Acquired Relay Coupler [Hunter]. 00569_ Acquired Relay Coupler [NC]. 00602_ Connecting with Garrison Terminal... 00602_ EXIT=FOUND >>Download(Registry) Retrieving Garrison registry... Downloaded map data. Downloaded component registry. Downloaded security status. 00613_ Knocked back. 00618_ C-17 Slicer destroyed. 00620_ Relay Coupler [NC] destroyed. 00621_ C-17 Slicer destroyed. 00621_ Switching to secondary target: G-47 Trooper. 00626_ Gravmag System destroyed. 00626_ Mic. Nuclear Core destroyed. 00626_ Critical hit (Burn: +37). Map ----- +----------------------------------------------------+ | ??# ## #???# ######## #???# #?# #????????????? | | ??# ## #???# ## ## #???# #?# #????????????? | | ??# ## #??## ##""""## ##??# #?# #????????????? | | ### ##+#### ####+### #????????????? | | + ^^ #????????????? | | ### ^^ #????????????? | | ??########## ## ## ###########????????????? | | ?????????### ## ## ###????????????????????? | | ?????????# " " #????????????????????? | | ?????????# " " #######??????????????? | | ?????##### " " + #??????????????? | | ?????# + " " ##### #??????????????? | | ?????# ##### ## ## ###???# #??????????????? | | ######+##### ## ## #######+##?????????????? | | ^^ #?????????????? | | ^ #?????????????? | | ############ ###+### #?????????????? | | #??????????######""""## #### #?# #?????????????? | | #???????????????# ## # ## ### #?????????????? | | #???????????????###+### + + #?????????????? | | #?????????????????# #?# ### #### #?????????????? | | #?????????????????# #?# #?# #??# #?????????????? | | ??????????????????# #?# #?# #??# #?????????????? | | ??????????????????# #?#]!#?# #??# #?????????????? | | #####?????????????# ###=Y###+#### =##############? | | #?????????????# g =*@ %= #? | | #?????????????##### c [ #? | | ########??????????########### %########### #? | | ##^""""#????????????????????# ####??????# #? | | ^ "#??????????????????### ##"#??????# ## | | ##^""""#??????????????????# "#??????# ! ! | | ########??????????????????# ! #??????# ## | | ##????????????????????????# !"#??????# ## | | #????????????????????????#+# ##"#??????# | | #????????????????????????# # ####??????# | | #????????????????????????# # #?????????# | | ##??????????????????####??# # #?????????##### | | #???????????????#####!!####+# #?????????????? | | #???????????????#" + #?????????????? | | #???????????????#"T"#!!###### #?????????????? | | #???????????????#####!!#????# #####?????????? | | #???????????????????#!!#?#### ####??????? | | #???????????????????#!!#?# ^ #??????? | | #???????????????????####?# """" """" #??????? | | #####?#####??????????????????# "&&" "&&" #??????? | | ??????# #??????????????????# "&&" "&&" #??????? | | #######"""#####??????????????# """" """" #??????? | | #??????????????# ^ #??????? | | #??????????????# #??????? | | ############ ###????????????# """" """" #??????? | +----------------------------------------------------+ Best States ------------- Heat Dissipation 31 Energy Generation 15 Energy Capacity 250 Matter Stores 300 Matter Capacity 300 Sight Range 16 Terrain Scan Density 10 Resistance: KI 20 Resistance: TH 20 Resistance: EX 20 Resistance: EM 20 Resistance: I 20 Resistance: S 20 Resistance: P 20 Evasion (%) 63 Offensive Hacking 10 Relay Coupler Types 3 Relay Coupler Value 64 Item Schematics ----------------- None Robot Schematics ------------------ None Fabricated ------------ Nothing Repaired ---------- Nothing Studied --------- None Alien Tech Used ----------------- None Achievements -------------- None Challenges ------------ None Game ------ Seed ArmorShrapnelLoader Manual? 0 Play Time 00:10:16 Cumulative 61.9 hours Start 2026.09.06 @ 17:14:18 End 2026.09.06 @ 17:21:44 Sessions 1 Manual Loads 0 Difficulty Adventurer Special Mode None Game No. 212 Rogue 201 Adventurer 11 Explorer 0 Win Type - Total 0 Types 0/0/0/0/0/0/0/0/0/0 Lore% 24 Gallery% 38 Achievement% 22 Wizard Run 0 Options --------- Layout 1 ASCII 0 Keyboard 0 Movement Mouse Keybinds 0 Fullscreen 1 Font 24/Smallcaps Map View 50x35 Zoom Use 0% Tactical HUD 1 Map Filters NONE Filters NONE Steam 1 RUN: bd48a666-6c33-46ff-ae88-474a7e727c90